bitfinex-derivatives/quotes_SOLF0:USTF0_20250424
["timestamp","ask_amount","ask_price","bid_price","bid_amount"]
[1745466710255,17.11661573,148.14,148.08,17.0]
[1745466710761,10.36741573,148.14,148.09,6.7511]
[1745466712063,17.11651573,148.14,148.09,6.7511]
[1745466712265,10.36741573,148.14,148.08,17.0]
[1745466712553,6.7511,148.09,148.08,17.0]
[1745466712761,29.3,148.14,148.08,17.0]
[1745466712960,10.36741573,148.13,148.08,17.0]
[1745466714361,10.36741573,148.11,148.08,17.0]
[1745466714759,6.7511,148.09,148.08,17.0]
[1745466715164,17.11851573,148.09,148.08,17.0]
[1745466715364,10.36741573,148.09,148.02,36.054]
[1745466715658,10.36741573,148.09,148.0,29.3]
[1745466715864,6.7517,148.08,148.04,6.7534]
[1745466716060,10.36741573,148.09,148.0,29.3]
[1745466716254,10.36741573,148.09,147.99,6.0861]
[1745466716458,10.36741573,148.03,147.95,1.17531832]
[1745466716758,17.12291573,148.0,147.93,6.7583]
[1745466716963,29.3,148.01,147.93,2.0825]
[1745466717258,10.36741573,148.02,147.93,2.0825]
[1745466717563,29.3,148.03,147.93,2.0825]
[1745466717564,10.36741573,148.0,147.93,2.0825]
[1745466717760,29.3,148.03,147.92,53.13680397]
[1745466717964,46.42161573,148.03,147.92,63.5042197]
[1745466718260,39.66741573,148.03,147.93,29.3]
[1745466718458,6.7552,148.01,147.95,6.7572]
[1745466718663,10.36741573,148.01,147.93,29.3]
[1745466718866,29.3,148.03,147.93,39.66741573]
[1745466719063,36.0539,148.03,147.95,10.36741573]
[1745466719266,10.36741573,148.01,147.96,3.9913]
[1745466719772,534.64,148.06,147.96,3.9913]
[1745466719959,10.36741573,148.05,147.97,41.58791573]
[1745466720264,29.32,148.06,147.97,41.58791573]
[1745466720666,6.7535,148.04,147.99,6.7554]
[1745466720863,6.7535,148.04,147.97,41.58791573]
[1745466721061,10.36741573,148.03,147.97,1.9005]
[1745466721459,29.32,148.06,147.97,1.9005]
[1745466721659,6.7537,148.04,147.99,6.7554]
[1745466721860,10.36741573,148.05,147.97,1.9005]
[1745466722163,6.7542,148.03,147.97,8.657]
[1745466722361,10.36741573,148.03,147.96,3.9913]
[1745466722760,19.10821573,148.05,147.99,6.7553]
[1745466722962,10.36741573,148.07,147.98,39.68741573]
[1745466723162,10.36741573,148.07,147.99,1.895]
[1745466723362,17.11981573,148.07,148.02,6.7543]
[1745466723765,10.62852573,148.09,147.99,12.26241573]
[1745466723966,0.26111,148.09,148.01,10.36741573]
[1745466724166,10.36741573,148.08,148.02,31.2552]
[1745466724361,17.11901573,148.08,148.03,6.7535]
[1745466724562,10.36741573,148.06,148.02,1.9352]
[1745466724861,17.11911573,148.08,148.03,6.7535]
[1745466725063,10.36741573,148.08,148.03,6.7535]
[1745466725263,10.36741573,148.08,148.02,1.9352]
[1745466725671,17.11941573,148.08,148.04,6.7533]
[1745466725860,10.36741573,148.08,148.02,1.9352]
[1745466726467,6.7523,148.07,148.03,6.7538]
[1745466726668,10.36741573,148.08,148.03,6.7538]
[1745466726968,6.7521,148.07,148.03,6.7538]
[1745466727467,0.26111,148.09,148.02,1.9352]
[1745466727664,0.26111,148.09,148.03,2.0302]
[1745466728472,0.26111,148.09,148.03,12.39761573]
[1745466728666,0.26111,148.09,148.04,29.32]
[1745466729071,0.26111,148.09,148.07,6.752]
[1745466731072,0.26111,148.09,148.03,12.39761573]
[1745466731267,0.26111,148.09,148.03,2.0302]
[1745466731462,10.36741573,148.07,148.02,1.9352]
[1745466731776,6.753,148.05,148.01,29.32]
[1745466731971,10.36741573,148.07,148.01,6.7544]
[1745466732373,6.7533,148.05,148.01,6.7544]
[1745466732671,10.36741573,148.07,148.01,6.7544]
[1745466733271,10.36741573,148.07,147.99,1.895]
[1745466733669,6.7529,148.05,148.01,6.7544]
[1745466733866,29.32,148.08,147.99,1.895]
[1745466734072,29.32,148.08,148.0,10.36741573]
[1745466734365,10.36741573,148.07,147.99,1.895]
[1745466734973,6.7534,148.05,148.01,6.7547]
[1745466735374,10.36741573,148.05,147.99,1.895]
[1745466735673,10.36741573,148.05,148.0,6.7551]
[1745466736273,6.7537,148.04,148.0,6.7551]
[1745466736470,6.7537,148.04,147.96,1.8972]
[1745466736870,6.7537,148.04,148.0,6.7549]
[1745466737071,6.754,148.03,148.0,6.7549]
[1745466737271,10.36741573,148.03,147.96,1.8972]
[1745466737672,10.36741573,148.01,147.97,6.7565]
[1745466737873,10.36741573,148.01,147.93,357.0]
[1745466738375,6.756,147.99,147.92,29.32]
[1745466738670,10.36741573,147.99,147.92,29.32]
[1745466738877,10.36741573,147.99,147.9,6.1971]
[1745466739376,6.7569,147.97,147.93,6.7581]
[1745466739576,10.36741573,147.99,147.93,6.7581]
[1745466739871,6.757,147.97,147.93,6.7581]
[1745466740074,10.36741573,147.96,147.9,4.1336]
[1745466740673,10.36741573,147.98,147.9,4.1336]
[1745466741175,10.36741573,147.98,147.9,10.893]
[1745466741475,6.7579,147.95,147.9,10.893]
[1745466741673,10.36741573,147.98,147.9,4.1336]
[1745466742180,6.7572,147.96,147.91,6.759]
[1745466742368,10.36741573,147.98,147.9,4.1336]
[1745466742572,10.36741573,147.96,147.89,38.40576965]
[1745466742777,10.36741573,147.96,147.9,6.7594]
[1745466743272,6.7578,147.95,147.9,6.7594]
[1745466743472,6.7578,147.95,147.91,6.7593]
[1745466743678,10.36741573,147.98,147.89,48.77318538]
[1745466744179,29.32,148.0,147.89,48.77318538]
[1745466744180,39.68741573,148.0,147.89,48.77318538]
[1745466744574,6.7567,147.97,147.89,48.77318538]
[1745466744777,39.68741573,148.0,147.89,48.77318538]
[1745466744981,10.36741573,147.98,147.93,6.7584]
[1745466745175,10.36741573,147.98,147.89,48.77318538]
[1745466745577,10.36741573,147.98,147.93,6.7584]
[1745466746179,6.7567,147.97,147.93,6.7584]
[1745466746473,10.36741573,147.98,147.92,6.7587]
[1745466747180,6.7571,147.96,147.92,6.7587]
[1745466748080,10.36741573,147.98,147.89,48.77318538]
[1745466748475,39.68741573,148.0,147.91,10.36741573]
[1745466748677,39.68741573,148.0,147.92,1.9485]
[1745466748878,10.36741573,147.98,147.92,1.9485]
[1745466749283,10.36741573,147.98,147.89,38.40576965]
[1745466749484,6.758,147.95,147.91,6.7592]
[1745466750281,10.36741573,147.98,147.92,6.7589]
[1745466750784,10.36741573,147.98,147.89,38.40576965]
[1745466751583,6.7574,147.96,147.92,6.7586]
[1745466751885,10.36741573,147.98,147.89,38.40576965]
[1745466752185,6.7558,147.99,147.9,10.36741573]
[1745466752482,39.68741573,148.0,147.9,10.36741573]
[1745466753382,39.68741573,148.0,147.93,6.7581]
[1745466753884,6.7562,147.98,147.94,6.7578]
[1745466754185,39.68741573,148.0,147.9,10.36741573]
[1745466754394,6.7575,147.95,147.91,6.7589]
[1745466754583,17.12491573,147.95,147.91,6.7589]
[1745466754778,17.12491573,147.95,147.89,38.40576965]
[1745466754779,10.36741573,147.95,147.89,38.40576965]
[1745466755104,6.7574,147.96,147.92,6.7588]
[1745466755286,10.36741573,147.97,147.92,6.7588]
[1745466755483,6.7572,147.96,147.92,6.7588]
[1745466755687,10.36741573,147.93,147.89,15.02596965]
[1745466755877,10.36741573,147.94,147.89,15.02596965]
[1745466756081,12.38541573,147.96,147.89,8.26576965]
[1745466756279,10.36741573,147.96,147.92,6.7587]
[1745466756482,2.018,148.0,147.92,30.16]
[1745466756677,12.38541573,148.0,147.95,6.7575]
[1745466758186,6.756,147.99,147.95,6.7575]
[1745466758986,12.38541573,148.0,147.95,30.16]
[1745466759688,6.7562,147.98,147.95,30.16]
[1745466760388,2.018,148.0,147.95,30.16]
[1745466760888,10.36741573,147.99,147.92,2.0072]
[1745466761088,10.36741573,147.99,147.93,30.16]
[1745466761289,10.36741573,147.99,147.92,2.0072]
[1745466761484,10.36741573,147.99,147.94,30.16]
[1745466761684,6.7568,147.97,147.94,36.918]
[1745466764691,26.952,148.14,147.94,30.16]
[1745466764988,10.36741573,148.0,147.95,30.16]
[1745466765189,6.756,147.99,147.95,36.9173]
[1745466765489,6.756,147.99,147.95,6.7573]
[1745466765689,10.36741573,148.0,147.95,6.7573]
[1745466765890,10.36741573,147.98,147.92,2.0072]
[1745466766090,10.36741573,147.98,147.92,32.1672]
[1745466766392,6.7569,147.97,147.94,6.7578]
[1745466766991,17.12371573,147.98,147.94,6.7578]
[1745466767290,10.36741573,147.98,147.95,6.7574]
[1745466767790,14.26871573,148.02,147.97,6.7566]
[1745466767987,10.36741573,148.04,147.96,30.16]
[1745466768189,30.16,148.08,147.92,2.0072]
[1745466768190,5.9074,148.08,147.92,2.0072]
[1745466768488,10.36741573,148.02,147.92,42.53461573]
[1745466768685,30.16,148.05,147.92,42.53461573]
[1745466768686,30.16,148.05,147.94,10.36741573]
[1745466768891,10.36741573,148.04,147.99,6.7556]
[1745466769095,17.12091573,148.04,147.99,6.7556]
[1745466769291,10.36741573,148.04,147.99,6.7556]
[1745466769683,10.36741573,148.06,147.98,30.16]
[1745466770587,10.36741573,148.06,147.98,32.2227]
[1745466770788,6.753,148.05,148.01,6.7545]
[1745466771287,17.12001573,148.06,148.01,6.7545]
[1745466771487,16.27481573,148.08,148.02,6.7543]
[1745466772292,6.7529,148.06,148.01,6.7547]
[1745466772694,17.12031573,148.06,148.01,6.7547]
[1745466772893,17.12031573,148.06,148.02,6.7543]
[1745466773789,6.7531,148.05,148.01,6.7547]
[1745466773994,10.36741573,148.06,147.98,32.2227]
[1745466774897,6.7537,148.04,148.0,6.7549]
[1745466775097,6.7537,148.04,147.98,32.2227]
[1745466775400,6.7537,148.04,148.0,6.7549]
[1745466775995,6.753,148.05,148.01,6.7547]
[1745466776398,10.36741573,148.06,147.98,32.2227]
[1745466776597,10.36741573,148.06,148.0,6.7551]
[1745466777099,6.7537,148.04,148.0,6.7551]
[1745466777800,6.754,148.03,148.0,6.7551]
[1745466778395,6.754,148.03,147.98,32.2227]
[1745466778396,10.36741573,148.02,147.91,30.9]
[1745466778602,10.36741573,147.97,147.91,30.9]
[1745466778798,10.36741573,147.97,147.92,6.7586]
[1745466779004,6.7574,147.96,147.92,6.7586]
[1745466779507,17.12421573,147.97,147.91,30.9]
[1745466779906,17.12421573,147.97,147.93,6.7582]
[1745466781308,17.12421573,147.97,147.94,6.7579]
[1745466781508,10.36741573,148.01,147.95,30.9]
[1745466781908,6.756,147.99,147.95,30.9]
[1745466782501,6.7557,148.0,147.95,30.9]
[1745466782807,10.36741573,148.01,147.95,30.9]
[1745466783508,10.36741573,148.01,147.96,6.7566]
[1745466784008,10.36741573,148.01,147.97,6.7563]
[1745466784503,6.7556,148.0,147.97,6.7563]
[1745466784705,10.36741573,148.01,147.96,6.7569]
[1745466785105,6.7557,147.99,147.96,6.7569]
[1745466785407,10.36741573,148.01,147.95,30.9]
[1745466785709,5.8166,148.02,147.95,30.9]
[1745466786209,6.7553,148.0,147.95,30.9]
[1745466786408,5.8166,148.02,147.96,6.7568]
[1745466786811,10.36741573,147.99,147.95,30.9]
[1745466787100,10.36741573,147.97,147.91,30.9]
[1745466787707,10.36741573,147.99,147.91,30.9]
[1745466788103,6.7564,147.98,147.94,6.7577]
[1745466788302,10.36741573,147.99,147.94,6.7577]
[1745466788509,10.36741573,147.99,147.91,30.9]
[1745466788714,10.36741573,147.97,147.91,30.9]
[1745466789206,6.7571,147.96,147.93,6.7581]
[1745466789510,10.36741573,147.99,147.91,30.9]
[1745466789909,6.7565,147.98,147.94,6.7576]
[1745466790110,6.7565,147.98,147.91,30.9]
[1745466790410,6.7565,147.98,147.95,6.7575]
[1745466791314,6.7565,147.98,147.94,6.7578]
[1745466792315,10.36741573,147.99,147.93,6.7583]
[1745466792811,6.7571,147.96,147.93,6.7583]
[1745466793011,10.36741573,147.99,147.95,6.7574]
[1745466793814,6.7564,147.98,147.95,6.7574]
[1745466794320,6.7564,147.98,147.94,6.7578]
[1745466794919,6.7564,147.98,147.95,6.7574]
[1745466795416,6.7559,147.99,147.91,30.9]
[1745466795616,6.7559,147.99,147.92,10.36741573]
[1745466796018,6.7559,147.99,147.91,30.9]
[1745466796319,6.7559,147.99,147.92,10.36741573]
[1745466796521,6.7563,147.98,147.91,30.9]
[1745466796914,6.7563,147.98,147.94,6.7575]
[1745466797113,6.7563,147.98,147.91,30.9]
[1745466798320,6.7563,147.98,147.95,6.7574]
[1745466801720,30.9,148.0,147.91,30.9]
[1745466802025,10.36741573,147.97,147.91,30.9]
[1745466802325,17.12411573,147.97,147.94,6.7579]
[1745466802520,6.7567,147.97,147.94,6.7579]
[1745466805825,6.7567,147.97,147.91,30.9]
[1745466806422,6.7563,147.98,147.95,6.7575]
[1745466807724,6.7566,147.97,147.94,6.7578]
[1745466808427,6.7563,147.98,147.95,6.7575]
[1745466809026,17.12331573,147.99,147.91,30.9]
[1745466809328,6.65074513,147.98,147.92,6.65074513]
[1745466809829,13.40714513,147.98,147.95,6.7572]
[1745466810527,6.7566,147.97,147.95,6.7572]
[1745466810734,6.65074513,147.98,147.95,6.7572]
[1745466811031,13.40714513,147.98,147.95,6.7572]
[1745466812330,6.7567,147.97,147.94,6.7578]
[1745466812627,10.36741573,148.05,147.88,3.8145]
[1745466812628,29.88,148.03,147.96,6.65074513]
[1745466812828,13.40504513,148.02,147.99,6.7554]
[1745466813131,6.65074513,148.02,147.95,29.88]
[1745466813328,6.65074513,148.02,147.96,6.65074513]
[1745466813530,13.40524513,148.02,147.99,6.7556]
[1745466813829,6.65074513,148.04,147.98,6.65074513]
[1745466814029,6.65074513,148.04,147.95,29.88]
[1745466814030,6.65074513,148.02,147.97,6.65074513]
[1745466814231,6.755,148.01,147.98,6.7557]
[1745466815531,6.755,148.01,147.99,6.7557]
[1745466815831,6.755,148.01,147.97,6.65074513]
[1745466816331,6.65074513,148.03,147.97,6.65074513]
[1745466816724,6.7544,148.02,147.99,6.7554]
[1745466817228,6.755,148.01,147.97,6.65074513]
[1745466817530,6.755,148.01,147.98,6.7559]
[1745466817730,6.65074513,148.03,147.97,6.65074513]
[1745466818333,6.65074513,148.01,147.97,6.65074513]
[1745466818532,13.40584513,148.01,147.98,6.7558]
[1745466819826,13.40584513,148.01,147.99,6.7557]
[1745466820033,6.7545,148.02,147.97,6.65074513]
[1745466820729,13.40484513,148.03,147.97,6.65074513]
[1745466821035,6.7541,148.03,147.99,6.65074513]
[1745466821333,13.40534513,148.02,147.99,6.7555]
[1745466822235,6.65074513,148.02,148.0,6.7552]
[1745466824032,29.88,148.05,148.01,6.7548]
[1745466824033,13.40424513,148.04,148.01,6.7548]
[1745466824431,6.65074513,148.04,147.99,6.65074513]
[1745466824638,6.65074513,148.04,148.02,6.754]
[1745466825539,6.65074513,148.04,147.99,36.51074513]
[1745466825837,6.65074513,148.02,147.97,6.65074513]
[1745466826037,6.65074513,148.02,147.96,40.39594513]
[1745466826238,6.65074513,148.02,147.98,6.7558]
[1745466826635,13.40534513,148.02,147.98,6.7558]
[1745466827238,6.65074513,148.02,147.98,6.7558]
[1745466827739,6.755,148.01,147.98,6.7558]
[1745466829235,6.7552,148.0,147.97,6.7564]
[1745466829438,13.40594513,148.0,147.97,6.7564]
[1745466831441,6.7558,147.99,147.96,36.6167]
[1745466831838,6.65074513,148.0,147.95,6.65074513]
[1745466832138,6.65074513,147.98,147.92,32.976]
[1745466832339,6.65074513,147.98,147.92,39.62674513]
[1745466832540,6.65074513,147.98,147.93,6.7581]
[1745466832541,6.7571,147.96,147.93,6.7581]
[1745466832741,6.65074513,147.98,147.92,39.62674513]
[1745466834247,6.7567,147.97,147.94,6.7579]
[1745466835248,6.65074513,147.98,147.94,6.7579]
[1745466835649,6.65074513,147.99,147.92,32.976]
[1745466835848,6.7566,147.97,147.93,6.65074513]
[1745466836051,6.65074513,147.98,147.93,6.65074513]
[1745466836348,13.40714513,147.98,147.95,6.7572]
[1745466837750,6.7566,147.97,147.94,6.7578]
[1745466837950,6.65074513,147.98,147.93,6.65074513]
[1745466838854,6.7568,147.97,147.94,6.7579]
[1745466839048,6.65074513,147.98,147.93,6.65074513]
[1745466839445,1.9882,148.06,147.92,32.976]
[1745466839446,6.65074513,147.95,147.92,30.906]
[1745466839650,6.65074513,147.95,147.92,28.86]
[1745466840753,6.65074513,147.95,147.92,35.6185]
[1745466840952,6.65074513,147.95,147.92,28.86]
[1745466841255,13.40734513,147.98,147.94,6.7579]
[1745466841551,6.65074513,147.98,147.94,6.7579]
[1745466841955,6.65074513,147.96,147.91,35.51074513]
[1745466842354,6.65074513,147.96,147.92,6.7585]
[1745466842957,6.7575,147.95,147.92,6.7585]
[1745466843363,6.65074513,147.96,147.93,6.7583]
[1745466843661,13.40704513,147.98,147.92,6.65074513]
[1745466843860,6.65074513,147.98,147.92,6.65074513]
[1745466844059,6.7569,147.97,147.94,6.7577]
[1745466844458,6.65074513,147.96,147.92,6.65074513]
[1745466844963,6.65074513,147.93,147.87,28.86]
[1745466845160,6.65074513,147.91,147.87,35.51074513]
[1745466845361,6.65074513,147.93,147.89,14.91651478]
[1745466845562,6.65074513,147.93,147.89,8.26576965]
[1745466845863,13.40934513,147.93,147.89,15.02566965]
[1745466846173,13.40934513,147.93,147.89,14.91651478]
[1745466846463,13.40794513,147.96,147.92,6.65074513]
[1745466846654,6.7572,147.96,147.92,6.65074513]
[1745466846860,6.7572,147.96,147.92,13.40934513]
[1745466847064,6.7576,147.95,147.92,13.40934513]
[1745466847363,6.65074513,147.95,147.91,6.7591]
[1745466847764,13.40844513,147.95,147.9,6.65074513]
[1745466848165,6.65074513,147.95,147.9,6.65074513]
[1745466848364,6.65074513,147.98,147.92,6.65074513]
[1745466848564,6.65074513,147.98,147.94,6.65074513]
[1745466848865,8.8302,147.99,147.94,6.65074513]
[1745466849066,8.8302,147.99,147.95,6.7572]
[1745466849466,6.7563,147.98,147.94,6.65074513]
[1745466849965,6.7567,147.97,147.93,6.65074513]
[1745466850165,6.65074513,147.98,147.93,6.65074513]
[1745466850464,6.65074513,147.98,147.92,3.9839]
[1745466850661,6.65074513,147.98,147.93,6.65074513]
[1745466850967,8.72514513,147.99,147.93,6.65074513]
[1745466851664,15.48104513,147.99,147.93,6.65074513]
[1745466852165,15.48104513,147.99,147.95,6.757]
[1745466853563,6.7562,147.98,147.95,6.757]
[1745466854167,6.7562,147.98,147.94,6.7578]
[1745466854568,6.7562,147.98,147.93,6.65074513]
[1745466854769,15.48094513,147.99,147.93,6.65074513]
[1745466855371,15.48094513,147.99,147.95,6.7573]
[1745466856071,6.65074513,147.99,147.94,6.65074513]
[1745466856368,6.65074513,148.0,147.95,28.86]
[1745466856570,6.65074513,148.0,147.95,35.51074513]
[1745466857071,13.40624513,148.0,147.97,6.7563]
[1745466857367,6.65074513,148.0,147.95,35.51074513]
[1745466857568,13.40624513,148.0,147.97,6.7566]
[1745466857970,6.7557,147.99,147.96,6.7568]
[1745466858171,6.65074513,148.0,147.95,35.51074513]
[1745466858775,13.40624513,148.0,147.97,6.7564]
[1745466860077,6.65074513,148.0,147.98,6.7561]
[1745466860271,13.40574513,148.01,147.98,6.7561]
[1745466860476,6.65074513,148.01,147.96,6.65074513]
[1745466860777,6.7553,148.0,147.98,6.7561]
[1745466860965,6.7553,148.0,147.97,6.65074513]
[1745466861273,6.7553,148.0,147.97,13.40694513]
[1745466861471,6.7553,148.0,147.97,6.65074513]
[1745466861877,6.7553,148.0,147.97,13.40714513]
[1745466862073,6.7553,148.0,147.97,6.65074513]
[1745466862978,6.7559,147.99,147.97,6.65074513]
[1745466863173,6.7559,147.99,147.96,6.65074513]
[1745466863979,13.40614513,148.0,147.96,13.40754513]
[1745466864275,6.65074513,148.01,147.96,6.65074513]
[1745466864476,6.65074513,148.01,147.97,6.65074513]
[1745466864982,6.7553,148.0,147.97,6.7563]
[1745466865177,6.65074513,148.01,147.96,6.65074513]
[1745466865378,6.65074513,148.0,147.96,6.65074513]
[1745466865577,13.40614513,148.0,147.97,6.7563]
[1745466865778,6.7554,148.0,147.97,6.7563]
[1745466866584,13.40574513,148.01,147.97,13.40704513]
[1745466866882,6.65074513,148.01,147.97,13.40704513]
[1745466867182,6.7553,148.0,147.97,13.40704513]
[1745466871688,6.65074513,148.0,147.95,6.65074513]
[1745466871883,6.65074513,147.99,147.95,6.65074513]
[1745466872583,6.65074513,147.97,147.93,28.26]
[1745466872886,6.65074513,147.97,147.92,6.65074513]
[1745466873088,6.7573,147.96,147.92,13.40934513]
[1745466873588,6.7598,147.9,147.84,28.26]
[1745466873789,6.65074513,147.9,147.86,6.65074513]
[1745466873983,6.65074513,147.91,147.86,13.41204513]
[1745466874286,6.65074513,147.92,147.86,6.65074513]
[1745466874479,6.7597,147.91,147.86,13.41224513]
[1745466875185,6.7598,147.9,147.86,13.41224513]
[1745466875488,6.7598,147.9,147.86,6.7615]
[1745466875691,6.7598,147.9,147.86,13.41224513]
[1745466878692,13.41054513,147.9,147.86,6.65074513]
[1745466878987,13.41054513,147.9,147.85,13.41284513]
[1745466879193,34.93074513,147.9,147.82,6.65074513]
[1745466879390,6.65074513,147.86,147.82,6.65074513]
[1745466879989,6.65074513,147.88,147.82,13.41414513]
[1745466880592,6.7619,147.86,147.83,6.763]
[1745466880890,6.65074513,147.88,147.83,6.763]
[1745466881093,6.7617,147.86,147.82,13.41404513]
[1745466881994,6.7621,147.85,147.82,6.7633]
[1745466882193,28.28,147.85,147.75,1.9131]
[1745466882392,34.93074513,147.87,147.81,6.65074513]
[1745466882591,34.93074513,147.87,147.75,1.9131]
[1745466882592,12.69064513,147.89,147.83,6.65074513]
[1745466882894,28.28,147.88,147.83,6.65074513]
[1745466883094,6.7619,147.86,147.83,13.41374513]
[1745466883489,6.7619,147.86,147.83,6.65074513]
[1745466884493,6.7621,147.85,147.83,6.65074513]
[1745466885296,535.77809,147.98,147.84,28.28]
[1745466885593,6.65074513,147.93,147.87,6.65074513]
[1745466885787,6.7601,147.9,147.87,6.65074513]
[1745466886396,6.7603,147.89,147.87,6.65074513]
[1745466886695,6.65074513,147.93,147.87,6.65074513]
[1745466886893,34.93074513,147.93,147.87,6.65074513]
[1745466887093,6.76,147.9,147.87,6.65074513]
[1745466887893,6.7594,147.91,147.87,13.41184513]
[1745466888096,28.28,147.93,147.81,30.3522]
[1745466888297,6.65074513,147.89,147.84,6.65074513]
[1745466888594,6.7608,147.88,147.84,13.41324513]
[1745466888795,6.7608,147.88,147.86,6.65074513]
[1745466888996,6.65074513,147.91,147.86,6.65074513]
[1745466890500,6.7596,147.91,147.87,6.7611]
[1745466890698,28.28,147.93,147.88,6.65074513]
[1745466890998,6.7583,147.94,147.9,13.41044513]
[1745466891195,3.8723,147.95,147.9,6.65074513]
[1745466891697,6.7587,147.93,147.9,6.65074513]
[1745466891905,3.8723,147.95,147.9,6.65074513]
[1745466892395,1.9355,147.95,147.9,6.65074513]
[1745466892698,6.7581,147.94,147.9,13.41044513]
[1745466892900,1.9355,147.95,147.9,6.65074513]
[1745466893300,6.7583,147.94,147.9,13.41054513]
[1745466893502,6.65074513,147.92,147.87,10.70534513]
[1745466893801,6.7595,147.91,147.87,17.46624513]
[1745466893997,6.65074513,147.92,147.87,15.41334513]
[1745466894395,6.7596,147.91,147.87,15.41334513]
[1745466894701,6.65074513,147.92,147.87,8.65244513]
[1745466894902,6.76,147.9,147.87,6.65074513]
[1745466895793,6.7607,147.89,147.85,27.44]
[1745466896001,6.65074513,147.92,147.86,6.65074513]
[1745466896200,6.65074513,147.92,147.86,13.41204513]
[1745466896598,6.65074513,147.92,147.86,6.65074513]
[1745466896801,6.7606,147.89,147.86,6.65074513]
[1745466899002,6.7608,147.88,147.86,6.65074513]
[1745466899204,6.65074513,147.92,147.86,6.65074513]
[1745466899503,6.7605,147.89,147.86,6.65074513]
[1745466900402,6.7605,147.89,147.86,13.41224513]
[1745466900602,6.76,147.9,147.86,6.65074513]
[1745466900901,29.4485,147.97,147.89,6.65074513]
[1745466901205,6.65074513,147.96,147.91,6.65074513]
[1745466901406,6.65074513,147.96,147.9,34.09074513]
[1745466901703,6.7592,147.92,147.89,6.65074513]
[1745466901899,29.4485,147.97,147.89,6.65074513]
[1745466902100,6.65074513,147.94,147.89,6.65074513]
[1745466902304,6.65074513,147.94,147.89,13.41074513]
[1745466902608,6.65074513,147.94,147.89,6.65074513]
[1745466903306,6.7588,147.93,147.89,13.41084513]
[1745466903506,6.65074513,147.94,147.89,13.41084513]
[1745466903708,6.65074513,147.94,147.89,6.65074513]
[1745466904107,6.7586,147.93,147.89,13.41074513]
[1745466904307,6.65074513,147.94,147.88,34.09074513]
[1745466904606,6.7592,147.92,147.88,40.85114513]
[1745466905207,6.7596,147.91,147.88,34.09074513]
[1745466905707,6.7596,147.91,147.88,6.65074513]
[1745466905909,13.40984513,147.92,147.88,13.41114513]
[1745466906507,6.7594,147.91,147.87,13.41174513]
[1745466906814,6.7594,147.91,147.87,6.65074513]
[1745466907016,13.40984513,147.92,147.88,6.7606]
[1745466907418,6.65074513,147.92,147.87,6.65074513]
[1745466907717,13.40934513,147.93,147.89,6.7599]
[1745466907916,6.65074513,147.93,147.89,13.41064513]
[1745466908112,6.65074513,147.93,147.88,6.7605]
[1745466908417,6.65074513,147.91,147.85,34.09074513]
[1745466908822,6.65074513,147.91,147.87,6.65074513]
[1745466909221,27.44,147.93,147.89,6.65074513]
[1745466910021,6.65074513,147.92,147.87,6.65074513]
[1745466910522,27.44,147.93,147.87,6.65074513]
[1745466910721,34.09074513,147.93,147.87,6.65074513]
[1745466910922,6.65074513,147.93,147.87,6.65074513]
[1745466911224,6.7592,147.92,147.89,6.7599]
[1745466911523,6.7592,147.92,147.87,6.65074513]
[1745466912222,6.7592,147.92,147.89,6.7602]
[1745466912723,6.7592,147.92,147.87,6.65074513]
[1745466913417,6.7592,147.92,147.88,6.7604]
[1745466913623,6.7595,147.91,147.88,6.7604]
[1745466914921,6.65074513,147.93,147.87,6.65074513]
[1745466914922,6.759,147.92,147.89,6.7602]
[1745466916527,6.759,147.92,147.88,6.7605]
[1745466916826,6.7594,147.91,147.88,6.7605]
[1745466917026,6.65074513,147.93,147.87,6.65074513]
[1745466917227,6.65074513,147.91,147.86,6.7615]
[1745466917526,6.65074513,147.91,147.85,34.09074513]
[1745466917927,6.7606,147.89,147.85,34.09074513]
[1745466918623,6.7606,147.89,147.86,6.7616]
[1745466919723,6.7606,147.89,147.85,34.2019]
[1745466920026,6.7606,147.89,147.85,34.09074513]
[1745466920427,13.41074513,147.9,147.86,13.41214513]
[1745466920728,34.09074513,147.92,147.88,6.65074513]